[Event "DVM U14 2024"]
[Site "Heidelberg"]
[Date "2024.12.27"]
[Round "2"]
[White "Rodriguez Klasen, Ennio"]
[Black "Marcziter, Alex"]
[Result "0-1"]
[ECO "C77"]
[WhiteElo "1870"]
[BlackElo "2017"]
[Annotator "RC"]
[PlyCount "116"]
[EventDate "2024.12.23"]
[EventType "team-tourn"]
[EventRounds "7"]
[EventCountry "GER"]
[SourceTitle "playchess.com"]
[Source "ChessBase"]
[SourceQuality "1"]
[TimeControl "40/5400+30:1800+30"]

1. e4 {[%emt 0:00:02]} e5 {[%emt 0:00:25]} 2. Nf3 {[%emt 0:00:07]} Nc6 {[%emt 0:00:20]} 3. Bb5 {[%emt 0:00:05]} a6 {[%emt 0:00:40]} 4. Ba4 {[%emt 0:00:05]} Nf6 {[%emt 0:01:08]} 5. Bxc6 {[%emt 0:00:05]} dxc6 {[%emt 0:01:20]} 6. d3 {[%emt 0:00:25]} Bc5 {[%emt 0:05:11]} 7. O-O {[%emt 0:01:04]} Bg4 {[%emt 0:05:20]} 8. Nbd2 {[%emt 0:03:03]} Qe7 {[%emt 0:03:58]} 9. Nc4 {[%emt 0:01:44]} Nd7 {[%emt 0:01:18]} 10. Ne3 {[%emt 0:11:19]} Bxe3 {[%emt 0:03:26]} 11. fxe3 {[%emt 0:04:22]} O-O-O {[%emt 0:03:14]} 12. Qe1 {[%emt 0:06:09]} g6 {[%emt 0:09:42]} 13. Qh4 {[%emt 0:09:20]} Qxh4 {[%emt 0:02:34]} 14. Nxh4 {[%emt 0:00:02]} Be6 {[%emt 0:04:13]} 15. b3 {[%emt 0:02:45]} c5 {[%emt 0:05:38]} 16. a4 {[%emt 0:05:12]} Rhe8 {[%emt 0:03:42]} 17. Bb2 {[%emt 0:02:12]} f6 {[%emt 0:02:15]} 18. Rad1 {[%emt 0:03:48]} Bg8 {[%emt 0:01:57]} 19. h3 {[%emt 0:04:51]} Re6 {[%emt 0:05:19]} 20. Rf2 {[%emt 0:03:56]} Rde8 {[%emt 0:01:36]} 21. g4 {[%emt 0:03:40]} Rb6 {[%emt 0:01:31]} 22. Ba3 {[%emt 0:06:07]} a5 {[%emt 0:04:23]} 23. Nf3 {[%emt 0:08:28]} Rd6 {[%emt 0:10:52]} 24. Nd2 {[%emt 0:07:35]} b6 {[%emt 0:00:52]} 25. Kg2 {[%emt 0:02:31]} Be6 {[%emt 0:02:10]} 26. Rdf1 {[%emt 0:02:26]} h6 {[%emt 0:05:20]} 27. Bb2 {[%emt 0:02:49]} Rh8 {[%emt 0:03:32]} 28. Rxf6 {[%emt 0:06:46]} Nxf6 {[%emt 0:00:10]} 29. Rxf6 {[%emt 0:00:08]} Bd7 {[%emt 0:04:11]} 30. Bxe5 {[%emt 0:00:23]} Rxf6 {[%emt 0:00:33]} 31. Bxf6 {[%emt 0:00:01]} Re8 {[%emt 0:01:23]} 32. Bc3 {[%emt 0:01:19]} Bc6 {[%emt 0:02:34]} 33. Nc4 {[%emt 0:02:06]} Re6 {[%emt 0:03:24]} 34. Kg3 {[%emt 0:00:49]} Kd7 {[%emt 0:01:08]} 35. Kh4 {[%emt 0:00:59]} Ke7 {[%emt 0:00:29]} 36. Kg3 {[%emt 0:01:03]} Bb7 {[%emt 0:01:08]} 37. Be5 {[%emt 0:00:35]} Kd7 {[%emt 0:00:35]} 38. Bg7 {[%emt 0:00:27]} g5 {[%emt 0:00:44]} 39. Bc3 {[%emt 0:00:28]} Ba6 {[%emt 0:00:48]} 40. Ne5+ {[%emt 0:00:32]} Kd6 {[%emt 0:00:42]} 41. Nf3 {[%emt 0:05:40]} Bb7 {[%emt 0:02:15]} 42. h4 {[%emt 0:03:03]} gxh4+ {[%emt 0:04:32]} 43. Nxh4 {[%emt 0:00:44]} c4 {[%emt 0:03:28]} 44. Nf5+ {[%emt 0:10:46]} Kd7 {[%emt 0:00:14]} 45. Bg7 {[%emt 0:07:28]} cxd3 {[%emt 0:00:49]} 46. cxd3 {[%emt 0:00:13]} Ba6 {[%emt 0:01:35]} 47. d4 {[%emt 0:01:30]} Rxe4 {[%emt 0:00:30]} 48. Bxh6 {[%emt 0:02:13]} Be2 {[%emt 0:00:26]} 49. Bf4 {[%emt 0:01:17]} Bd1 {[%emt 0:00:53]} 50. g5 {[%emt 0:01:24]} Bxb3 {[%emt 0:00:43]} 51. g6 {[%emt 0:01:18]} Bxa4 {[%emt 0:00:48]} 52. Be5 {[%emt 0:00:25]} Bb3 {[%emt 0:01:37]} 53. Nh6 {[%emt 0:00:34]} a4 {[%emt 0:01:04]} 54. Ng4 {[%emt 0:00:33]} Ke7 {[%emt 0:04:22]} 55. Kf3 {[%emt 0:00:31]} Bd5 {[%emt 0:00:48]} 56. Bf6+ {[%emt 0:00:16]} Ke6 {[%emt 0:00:50]} 57. g7 {[%emt 0:00:44]} Rxg4+ {[%emt 0:00:16]} 58. Kxg4 {[%emt 0:00:05]} Kxf6 {[%emt 0:00:08]} 0-1

[Event "DVM U14 2024"]
[Site "Heidelberg"]
[Date "2024.12.27"]
[Round "2"]
[White "Haertel, Leon"]
[Black "Ollhoff, Hannes"]
[Result "1/2-1/2"]
[ECO "D35"]
[WhiteElo "1839"]
[BlackElo "1801"]
[Annotator "NA RC"]
[PlyCount "60"]
[EventDate "2024.12.23"]
[EventType "team-tourn"]
[EventRounds "7"]
[EventCountry "GER"]
[SourceTitle "playchess.com"]
[Source "ChessBase"]
[SourceQuality "1"]
[TimeControl "40/5400+30:1800+30"]

1. d4 {[%emt 0:00:04]} d5 {[%emt 0:00:30]} 2. c4 {[%emt 0:00:12]} e6 {[%emt 0:00:26]} 3. Nc3 {[%emt 0:00:16]} Nf6 {[%emt 0:00:14]} 4. cxd5 {[%emt 0:00:13]} exd5 {[%emt 0:00:08]} 5. Bg5 {[%emt 0:00:09]} c6 {[%emt 0:01:25]} 6. e3 {[%emt 0:00:45]} Be7 {[%emt 0:00:45]} 7. Bd3 {[%emt 0:00:29]} Bg4 {[%emt 0:01:16]} 8. Qc2 {[%emt 0:02:26]} Bh5 {[%emt 0:01:06]} 9. Nge2 {[%emt 0:06:10]} Bg6 {[%emt 0:01:26]} 10. O-O {[%emt 0:02:35]} Nbd7 {[%emt 0:02:33]} 11. f3 {[%emt 0:08:00]} Bxd3 {[%emt 0:04:42]} 12. Qxd3 {[%emt 0:00:16]} O-O {[%emt 0:00:12]} 13. e4 {[%emt 0:07:05]} dxe4 {[%emt 0:02:08]} 14. Nxe4 {[%emt 0:10:30]} Nd5 {[%emt 0:15:38]} 15. Bxe7 {[%emt 0:02:44]} Qxe7 {[%emt 0:00:36]} 16. N2c3 {[%emt 0:02:11]} N7f6 {[%emt 0:07:04]} 17. Rfe1 {[%emt 0:08:38]} Rad8 {[%emt 0:09:07]} 18. Rad1 {[%emt 0:04:34]} h6 {[%emt 0:08:39]} 19. Qd2 {[%emt 0:11:35]} Qc7 {[%emt 0:03:57]} 20. Qf2 {[%emt 0:03:01]} Qa5 {[%emt 0:09:29]} 21. Nxf6+ {[%emt 0:07:37]} Nxf6 {[%emt 0:00:54]} 22. Re7 {[%emt 0:00:29]} Qb4 {[%emt 0:04:45]} 23. Rde1 {[%emt 0:04:27]} Nd5 {[%emt 0:05:21]} 24. Nxd5 {[%emt 0:04:49]} Rxd5 {[%emt 0:00:14]} 25. h3 {[%emt 0:01:48]} Rfd8 {[%emt 0:05:53]} 26. a3 {[%emt 0:02:40]} Qb6 {[%emt 0:03:42]} 27. Re8+ {[%emt 0:00:27]} Kh7 {[%emt 0:04:19]} 28. R8e7 {[%emt 0:08:24]} R8d7 {[%emt 0:02:46]} 29. Rxd7 {[%emt 0:01:15]} Rxd7 {[%emt 0:00:09]} 30. Re4 {[%emt 0:00:25]} a6 {[%emt 0:03:00]} 1/2-1/2

[Event "DVM U14 2024"]
[Site "Heidelberg"]
[Date "2024.12.27"]
[Round "2"]
[White "Meng, Yuxuan"]
[Black "Roessler, Leo"]
[Result "0-1"]
[ECO "B07"]
[WhiteElo "1833"]
[BlackElo "1589"]
[Annotator "NA RC"]
[PlyCount "82"]
[EventDate "2024.12.23"]
[EventType "team-tourn"]
[EventRounds "7"]
[EventCountry "GER"]
[SourceTitle "playchess.com"]
[Source "ChessBase"]
[SourceQuality "1"]
[TimeControl "40/5400+30:1800+30"]

1. e4 {[%emt 0:00:03]} d6 {[%emt 0:00:09]} 2. d4 {[%emt 0:00:06]} Nf6 {[%emt 0:00:15]} 3. Nc3 {[%emt 0:00:06]} g6 {[%emt 0:00:34]} 4. Be3 {[%emt 0:00:53]} Bg7 {[%emt 0:00:46]} 5. f3 {[%emt 0:00:10]} c6 {[%emt 0:00:22]} 6. Qd2 {[%emt 0:00:15]} a6 {[%emt 0:02:42]} 7. O-O-O {[%emt 0:00:40]} b5 {[%emt 0:01:11]} 8. Kb1 {[%emt 0:00:58]} Bb7 {[%emt 0:05:15]} 9. h4 {[%emt 0:04:20]} h5 {[%emt 0:02:01]} 10. Nh3 {[%emt 0:03:56]} Nbd7 {[%emt 0:02:38]} 11. Bg5 {[%emt 0:09:27]} Qc7 {[%emt 0:05:40]} 12. Nf2 {[%emt 0:09:59]} Nb6 {[%emt 0:07:20]} 13. Bd3 {[%emt 0:09:46]} O-O-O {[%emt 0:02:25]} 14. Rhe1 {[%emt 0:07:35]} e5 {[%emt 0:01:22]} 15. f4 {[%emt 0:16:33]} exd4 {[%emt 0:11:42]} 16. Ne2 {[%emt 0:02:38]} c5 {[%emt 0:03:37]} 17. Ng3 {[%emt 0:01:25]} Rde8 {[%emt 0:03:47]} 18. e5 {[%emt 0:01:59]} dxe5 {[%emt 0:02:22]} 19. fxe5 {[%emt 0:00:10]} Nfd5 {[%emt 0:00:55]} 20. e6 {[%emt 0:02:16]} Rxe6 {[%emt 0:05:29]} 21. Rxe6 {[%emt 0:03:15]} fxe6 {[%emt 0:01:11]} 22. Ne2 {[%emt 0:05:23]} e5 {[%emt 0:06:29]} 23. Bxg6 {[%emt 0:00:44]} Nc4 {[%emt 0:01:55]} 24. Qd3 {[%emt 0:01:59]} Nde3 {[%emt 0:02:54]} 25. Rg1 {[%emt 0:00:38]} Qa5 {[%emt 0:06:23]} 26. Nd1 {[%emt 0:08:14]} Nd2+ {[%emt 0:02:02]} 27. Kc1 {[%emt 0:01:34]} Ndc4 {[%emt 0:03:05]} 28. Nxe3 {[%emt 0:01:17]} Nxe3 {[%emt 0:00:40]} 29. a3 {[%emt 0:04:33]} c4 {[%emt 0:01:25]} 30. Qd2 {[%emt 0:00:30]} Qxd2+ {[%emt 0:00:14]} 31. Kxd2 {[%emt 0:00:06]} Bh6 {[%emt 0:00:45]} 32. Bxh6 {[%emt 0:00:53]} Rxh6 {[%emt 0:00:27]} 33. Bf7 {[%emt 0:00:31]} Nxg2 {[%emt 0:02:58]} 34. Ng3 {[%emt 0:00:47]} Nxh4 {[%emt 0:00:31]} 35. Rf1 {[%emt 0:03:00]} Nf3+ {[%emt 0:00:47]} 36. Ke2 {[%emt 0:00:30]} h4 {[%emt 0:01:30]} 37. Nh1 {[%emt 0:01:03]} Rf6 {[%emt 0:01:10]} 38. Bh5 {[%emt 0:00:25]} d3+ {[%emt 0:00:49]} 39. cxd3 {[%emt 0:00:09]} Nd4+ {[%emt 0:00:23]} 40. Ke1 {[%emt 0:00:16]} Rxf1+ {[%emt 0:00:08]} 41. Kxf1 {[%emt 0:30:06]} Bxh1 {[%emt 0:30:13]} 0-1

[Event "DVM U14 2024"]
[Site "Heidelberg"]
[Date "2024.12.27"]
[Round "2"]
[White "Geschke, David"]
[Black "Muller, Anker"]
[Result "1/2-1/2"]
[ECO "D26"]
[WhiteElo "1831"]
[BlackElo "1744"]
[Annotator "NA RC"]
[PlyCount "73"]
[EventDate "2024.12.23"]
[EventType "team-tourn"]
[EventRounds "7"]
[EventCountry "GER"]
[SourceTitle "playchess.com"]
[Source "ChessBase"]
[SourceQuality "1"]
[TimeControl "40/5400+30:1800+30"]

1. d4 {[%emt 0:00:05]} d5 {[%emt 0:00:04]} 2. c4 {[%emt 0:00:07]} dxc4 {[%emt 0:04:55]} 3. e3 {[%emt 0:00:12]} Nf6 {[%emt 0:00:08]} 4. Bxc4 {[%emt 0:00:12]} e6 {[%emt 0:00:08]} 5. Nf3 {[%emt 0:00:30]} a6 {[%emt 0:00:15]} 6. O-O {[%emt 0:03:11]} c5 {[%emt 0:00:03]} 7. b3 {[%emt 0:04:01]} Nc6 {[%emt 0:03:10]} 8. Bb2 {[%emt 0:00:45]} Be7 {[%emt 0:02:25]} 9. dxc5 {[%emt 0:06:27]} Qxd1 {[%emt 0:01:23]} 10. Rxd1 {[%emt 0:00:05]} Bxc5 {[%emt 0:00:27]} 11. Nc3 {[%emt 0:01:23]} Ke7 {[%emt 0:01:22]} 12. Kf1 {[%emt 0:06:14]} b5 {[%emt 0:01:53]} 13. Be2 {[%emt 0:01:02]} Bb7 {[%emt 0:00:36]} 14. Rac1 {[%emt 0:02:40]} Bb6 {[%emt 0:02:21]} 15. Nd2 {[%emt 0:11:06]} Rhd8 {[%emt 0:07:21]} 16. Bf3 {[%emt 0:02:10]} Rac8 {[%emt 0:24:52]} 17. Nce4 {[%emt 0:05:15]} Ba5 {[%emt 0:26:59]} 18. Ke2 {[%emt 0:16:27]} Nb4 {[%emt 0:13:40]} 19. Ba3 {[%emt 0:14:19]} Nxe4 {[%emt 0:02:21]} 20. Nxe4 {[%emt 0:07:23]} Rxd1 {[%emt 0:03:58]} 21. Kxd1 {[%emt 0:02:54]} Rd8+ {[%emt 0:01:33]} 22. Ke2 {[%emt 0:01:07]} Bxe4 {[%emt 0:00:36]} 23. Bxe4 {[%emt 0:00:02]} f5 {[%emt 0:00:39]} 24. Bb7 {[%emt 0:03:06]} Kf6 {[%emt 0:00:40]} 25. Bxb4 {[%emt 0:01:13]} Bxb4 {[%emt 0:00:00]} 26. Bxa6 {[%emt 0:01:31]} Rd2+ {[%emt 0:00:41]} 27. Kf3 {[%emt 0:00:00]} Ba3 {[%emt 0:00:34]} 28. Rc6 {[%emt 0:01:27]} Rxa2 {[%emt 0:00:44]} 29. Bxb5 {[%emt 0:00:28]} Bb4 {[%emt 0:00:29]} 30. Bd3 {[%emt 0:08:50]} Be1 {[%emt 0:00:25]} 31. Rc2 {[%emt 0:00:07]} Rxc2 {[%emt 0:00:09]} 32. Bxc2 {[%emt 0:00:06]} Bb4 {[%emt 0:00:17]} 33. e4 {[%emt 0:00:33]} Ke5 {[%emt 0:00:26]} 34. exf5 {[%emt 0:01:32]} exf5 {[%emt 0:00:01]} 35. h3 {[%emt 0:00:31]} h6 {[%emt 0:00:17]} 36. Ke3 {[%emt 0:00:39]} f4+ {[%emt 0:01:13]} 37. Kf3 {[%emt 0:00:22]} 1/2-1/2

[Event "DVM U14 2024"]
[Site "Heidelberg"]
[Date "2024.12.27"]
[Round "2"]
[White "Kovalyov, Dima"]
[Black "Zabashtanskyi, Andrii"]
[Result "1/2-1/2"]
[ECO "D11"]
[WhiteElo "1829"]
[BlackElo "1644"]
[Annotator "NA RC"]
[PlyCount "121"]
[EventDate "2024.12.23"]
[EventType "team-tourn"]
[EventRounds "7"]
[EventCountry "GER"]
[SourceTitle "playchess.com"]
[Source "ChessBase"]
[SourceQuality "1"]
[TimeControl "40/5400+30:1800+30"]

1. d4 {[%emt 0:00:16]} Nf6 {[%emt 0:00:16]} 2. Nf3 {[%emt 0:00:04]} d5 {[%emt 0:00:37]} 3. g3 {[%emt 0:00:05]} Bf5 {[%emt 0:00:53]} 4. Bg2 {[%emt 0:00:09]} e6 {[%emt 0:00:33]} 5. O-O {[%emt 0:00:20]} Bd6 {[%emt 0:00:20]} 6. c4 {[%emt 0:00:08]} c6 {[%emt 0:00:35]} 7. Nc3 {[%emt 0:01:10]} O-O {[%emt 0:00:28]} 8. Bg5 {[%emt 0:01:00]} h6 {[%emt 0:00:34]} 9. Bxf6 {[%emt 0:03:09]} Qxf6 {[%emt 0:00:21]} 10. Nh4 {[%emt 0:00:50]} Bh7 {[%emt 0:10:15]} 11. e4 {[%emt 0:00:36]} dxe4 {[%emt 0:00:40]} 12. Nxe4 {[%emt 0:00:53]} Qe7 {[%emt 0:00:20]} 13. Qb3 {[%emt 0:01:46]} Bxe4 {[%emt 0:04:49]} 14. Bxe4 {[%emt 0:00:12]} Qc7 {[%emt 0:00:21]} 15. Rac1 {[%emt 0:05:33]} Nd7 {[%emt 0:03:36]} 16. c5 {[%emt 0:02:40]} Be7 {[%emt 0:00:30]} 17. Nf3 {[%emt 0:02:43]} Nf6 {[%emt 0:00:30]} 18. Bb1 {[%emt 0:04:00]} Nd5 {[%emt 0:01:56]} 19. Qd3 {[%emt 0:00:47]} Nf6 {[%emt 0:01:18]} 20. b4 {[%emt 0:00:39]} a6 {[%emt 0:01:41]} 21. Ne5 {[%emt 0:02:30]} Rfd8 {[%emt 0:01:34]} 22. Rfd1 {[%emt 0:02:06]} Rd5 {[%emt 0:03:48]} 23. Qc3 {[%emt 0:00:53]} a5 {[%emt 0:18:03]} 24. a3 {[%emt 0:01:16]} axb4 {[%emt 0:02:22]} 25. axb4 {[%emt 0:00:35]} Rdd8 {[%emt 0:00:36]} 26. Nc4 {[%emt 0:02:24]} Nd5 {[%emt 0:07:55]} 27. Qd3 {[%emt 0:00:28]} f5 {[%emt 0:04:46]} 28. Qe2 {[%emt 0:00:57]} Qd7 {[%emt 0:03:50]} 29. Re1 {[%emt 0:01:35]} Bg5 {[%emt 0:02:57]} 30. Rcd1 {[%emt 0:01:42]} Nc3 {[%emt 0:01:09]} 31. Qf3 {[%emt 0:04:39]} Nxd1 {[%emt 0:00:54]} 32. Nb6 {[%emt 0:01:20]} Qxd4 {[%emt 0:01:04]} 33. Nxa8 {[%emt 0:00:32]} Nxf2 {[%emt 0:02:02]} 34. Qxf2 {[%emt 0:00:26]} Qxf2+ {[%emt 0:00:21]} 35. Kxf2 {[%emt 0:00:04]} Rxa8 {[%emt 0:00:15]} 36. Rxe6 {[%emt 0:00:45]} Bd2 {[%emt 0:00:58]} 37. b5 {[%emt 0:00:51]} cxb5 {[%emt 0:02:23]} 38. Rb6 {[%emt 0:01:05]} Bb4 {[%emt 0:00:48]} 39. Rxb5 {[%emt 0:00:40]} Ba3 {[%emt 0:02:17]} 40. Kf3 {[%emt 0:02:39]} Rc8 {[%emt 0:01:32]} 41. Bxf5 {[%emt 0:31:25]} Rxc5 {[%emt 0:32:44]} 42. Be6+ {[%emt 0:01:15]} Kh7 {[%emt 0:02:32]} 43. Rxb7 {[%emt 0:00:55]} Re5 {[%emt 0:02:11]} 44. Bc4 {[%emt 0:00:54]} Re8 {[%emt 0:01:58]} 45. Bd3+ {[%emt 0:01:09]} Kh8 {[%emt 0:00:28]} 46. Kg2 {[%emt 0:01:17]} Rd8 {[%emt 0:00:49]} 47. Be4 {[%emt 0:01:15]} Bd6 {[%emt 0:00:38]} 48. Bg6 {[%emt 0:04:43]} Be5 {[%emt 0:01:07]} 49. Re7 {[%emt 0:02:28]} Bf6 {[%emt 0:00:30]} 50. Re8+ {[%emt 0:00:23]} Rxe8 {[%emt 0:00:12]} 51. Bxe8 {[%emt 0:00:02]} Kg8 {[%emt 0:00:14]} 52. h4 {[%emt 0:00:11]} Kf8 {[%emt 0:00:14]} 53. Ba4 {[%emt 0:00:02]} Ke7 {[%emt 0:00:15]} 54. Kh3 {[%emt 0:00:10]} Ke6 {[%emt 0:00:25]} 55. Kg4 {[%emt 0:00:17]} Ke5 {[%emt 0:00:27]} 56. Kh5 {[%emt 0:00:47]} Ke4 {[%emt 0:00:24]} 57. g4 {[%emt 0:00:41]} Kf4 {[%emt 0:00:23]} 58. g5 {[%emt 0:00:27]} hxg5 {[%emt 0:00:22]} 59. hxg5 {[%emt 0:00:06]} Bxg5 {[%emt 0:00:16]} 60. Kg6 {[%emt 0:00:04]} Bf6 {[%emt 0:00:11]} 61. Bc2 {[%emt 0:00:05]} 1/2-1/2

[Event "DVM U14 2024"]
[Site "Heidelberg"]
[Date "2024.12.27"]
[Round "2"]
[White "Ahryzkov, Ivan"]
[Black "Nguyen, Bach Khoi"]
[Result "1-0"]
[ECO "B22"]
[WhiteElo "1813"]
[BlackElo "1590"]
[Annotator "NA RC"]
[PlyCount "83"]
[EventDate "2024.12.23"]
[EventType "team-tourn"]
[EventRounds "7"]
[EventCountry "GER"]
[SourceTitle "playchess.com"]
[Source "ChessBase"]
[SourceQuality "1"]
[TimeControl "40/5400+30:1800+30"]

1. e4 {[%emt 0:00:02]} c5 {[%emt 0:00:06]} 2. c3 {[%emt 0:00:09]} d5 {[%emt 0:00:38]} 3. exd5 {[%emt 0:00:07]} Qxd5 {[%emt 0:00:06]} 4. d4 {[%emt 0:00:07]} Nc6 {[%emt 0:00:21]} 5. Nf3 {[%emt 0:00:05]} Bf5 {[%emt 0:00:28]} 6. Be3 {[%emt 0:13:28]} cxd4 {[%emt 0:00:19]} 7. cxd4 {[%emt 0:00:28]} Bxb1 {[%emt 0:00:36]} 8. Rxb1 {[%emt 0:00:20]} Nf6 {[%emt 0:00:49]} 9. Qa4 {[%emt 0:03:56]} a6 {[%emt 0:05:40]} 10. Bc4 {[%emt 0:06:37]} Qa5+ {[%emt 0:03:57]} 11. Qxa5 {[%emt 0:04:59]} Nxa5 {[%emt 0:00:06]} 12. Bd3 {[%emt 0:00:16]} e6 {[%emt 0:02:45]} 13. O-O {[%emt 0:00:22]} Bd6 {[%emt 0:01:18]} 14. Ne5 {[%emt 0:03:50]} Rc8 {[%emt 0:02:01]} 15. Rbc1 {[%emt 0:01:03]} O-O {[%emt 0:00:20]} 16. Bd2 {[%emt 0:01:33]} Nc6 {[%emt 0:01:49]} 17. Nxc6 {[%emt 0:00:09]} Rxc6 {[%emt 0:00:50]} 18. Rxc6 {[%emt 0:00:37]} bxc6 {[%emt 0:00:06]} 19. Bxa6 {[%emt 0:00:17]} Rb8 {[%emt 0:01:13]} 20. Rb1 {[%emt 0:13:41]} Ne4 {[%emt 0:01:11]} 21. Be1 {[%emt 0:00:13]} Ba3 {[%emt 0:11:59]} 22. Bd3 {[%emt 0:02:15]} Rxb2 {[%emt 0:04:08]} 23. Rxb2 {[%emt 0:00:22]} Bxb2 {[%emt 0:00:06]} 24. Bxe4 {[%emt 0:00:05]} Bxd4 {[%emt 0:01:16]} 25. Bxc6 {[%emt 0:00:04]} Bc5 {[%emt 0:00:31]} 26. a4 {[%emt 0:00:06]} Kf8 {[%emt 0:00:06]} 27. a5 {[%emt 0:00:10]} Ke7 {[%emt 0:00:28]} 28. a6 {[%emt 0:00:13]} Kd6 {[%emt 0:00:41]} 29. Be4 {[%emt 0:00:11]} f5 {[%emt 0:00:35]} 30. Bb7 {[%emt 0:00:34]} g5 {[%emt 0:00:42]} 31. Kf1 {[%emt 0:01:17]} Ba7 {[%emt 0:00:20]} 32. Bd2 {[%emt 0:01:23]} f4 {[%emt 0:00:08]} 33. g3 {[%emt 0:00:36]} e5 {[%emt 0:00:14]} 34. h4 {[%emt 0:01:47]} h6 {[%emt 0:00:20]} 35. hxg5 {[%emt 0:00:23]} hxg5 {[%emt 0:00:10]} 36. gxf4 {[%emt 0:00:06]} gxf4 {[%emt 0:00:10]} 37. f3 {[%emt 0:00:03]} Kc7 {[%emt 0:00:43]} 38. Bc3 {[%emt 0:00:07]} Kd6 {[%emt 0:00:12]} 39. Ke2 {[%emt 0:00:05]} Bb8 {[%emt 0:01:00]} 40. Kd3 {[%emt 0:00:11]} e4+ {[%emt 0:00:29]} 41. Kxe4 {[%emt 0:30:08]} Ba7 {[%emt 0:30:18]} 42. Bd4 {[%emt 0:00:18]} 1-0

[Event "DVM U14 2024"]
[Site "Heidelberg"]
[Date "2024.12.27"]
[Round "2"]
[White "Allen, Phillipp"]
[Black "Pflug, Anton"]
[Result "1/2-1/2"]
[ECO "D35"]
[WhiteElo "1793"]
[BlackElo "1812"]
[Annotator "NA RC"]
[PlyCount "85"]
[EventDate "2024.12.23"]
[EventType "team-tourn"]
[EventRounds "7"]
[EventCountry "GER"]
[SourceTitle "playchess.com"]
[Source "ChessBase"]
[SourceQuality "1"]
[TimeControl "40/5400+30:1800+30"]

1. d4 {[%emt 0:00:03]} d5 {[%emt 0:00:14]} 2. c4 {[%emt 0:00:06]} e6 {[%emt 0:00:06]} 3. Nc3 {[%emt 0:00:07]} Nf6 {[%emt 0:00:10]} 4. cxd5 {[%emt 0:00:10]} exd5 {[%emt 0:00:26]} 5. Bg5 {[%emt 0:00:13]} Be7 {[%emt 0:00:37]} 6. e3 {[%emt 0:01:05]} c6 {[%emt 0:00:44]} 7. Bd3 {[%emt 0:00:17]} O-O {[%emt 0:00:14]} 8. Nge2 {[%emt 0:00:31]} Nbd7 {[%emt 0:04:06]} 9. O-O {[%emt 0:01:55]} h6 {[%emt 0:01:40]} 10. Bh4 {[%emt 0:00:58]} Re8 {[%emt 0:03:45]} 11. Rb1 {[%emt 0:04:12]} a5 {[%emt 0:01:29]} 12. a3 {[%emt 0:03:47]} b5 {[%emt 0:04:09]} 13. b4 {[%emt 0:05:26]} Nb6 {[%emt 0:03:25]} 14. f3 {[%emt 0:01:41]} Nc4 {[%emt 0:06:27]} 15. Bxc4 {[%emt 0:00:20]} dxc4 {[%emt 0:00:08]} 16. Bf2 {[%emt 0:07:54]} axb4 {[%emt 0:13:45]} 17. axb4 {[%emt 0:00:16]} Nd5 {[%emt 0:00:13]} 18. Nxd5 {[%emt 0:00:58]} cxd5 {[%emt 0:00:27]} 19. Nc3 {[%emt 0:02:02]} Qd7 {[%emt 0:00:29]} 20. e4 {[%emt 0:01:54]} Bb7 {[%emt 0:04:56]} 21. Be3 {[%emt 0:14:05]} Ra3 {[%emt 0:14:00]} 22. Qc1 {[%emt 0:01:20]} Rea8 {[%emt 0:00:13]} 23. e5 {[%emt 0:06:48]} Bc6 {[%emt 0:04:00]} 24. Qc2 {[%emt 0:02:33]} Qd8 {[%emt 0:06:28]} 25. f4 {[%emt 0:07:38]} Qf8 {[%emt 0:01:26]} 26. Bd2 {[%emt 0:04:28]} Bxb4 {[%emt 0:10:59]} 27. Nxb5 {[%emt 0:06:36]} Ra2 {[%emt 0:03:21]} 28. Bxb4 {[%emt 0:03:01]} Rxc2 {[%emt 0:00:05]} 29. Bxf8 {[%emt 0:00:06]} Raa2 {[%emt 0:00:24]} 30. Rf3 {[%emt 0:05:32]} Rxg2+ {[%emt 0:01:14]} 31. Kf1 {[%emt 0:00:48]} Rxh2 {[%emt 0:01:37]} 32. Kg1 {[%emt 0:00:18]} Kxf8 {[%emt 0:00:48]} 33. Nd6 {[%emt 0:06:10]} Rhb2 {[%emt 0:04:26]} 34. Re1 {[%emt 0:04:22]} Bd7 {[%emt 0:02:21]} 35. f5 {[%emt 0:01:36]} Ra6 {[%emt 0:06:01]} 36. Nxf7 {[%emt 0:03:34]} Kxf7 {[%emt 0:00:15]} 37. e6+ {[%emt 0:00:13]} Kf6 {[%emt 0:01:07]} 38. exd7 {[%emt 0:00:19]} Rb8 {[%emt 0:00:39]} 39. Re8 {[%emt 0:03:15]} Raa8 {[%emt 0:01:23]} 40. Rfe3 {[%emt 0:01:01]} c3 {[%emt 0:01:06]} 41. R8e6+ {[%emt 0:16:21]} Kxf5 {[%emt 0:02:26]} 42. R6e5+ {[%emt 0:00:30]} Kf4 {[%emt 0:06:21]} 43. Rxc3 {[%emt 0:00:16]} 1/2-1/2

[Event "DVM U14 2024"]
[Site "Heidelberg"]
[Date "2024.12.27"]
[Round "2"]
[White "Shevchenko, Igor"]
[Black "Riechenberg, Sebastian"]
[Result "0-1"]
[ECO "E46"]
[WhiteElo "1788"]
[BlackElo "2041"]
[Annotator "RC"]
[PlyCount "92"]
[EventDate "2024.12.23"]
[EventType "team-tourn"]
[EventRounds "7"]
[EventCountry "GER"]
[SourceTitle "playchess.com"]
[Source "ChessBase"]
[SourceQuality "1"]
[TimeControl "40/5400+30:1800+30"]

1. d4 {[%emt 0:00:06]} Nf6 {[%emt 0:00:05]} 2. c4 {[%emt 0:00:10]} e6 {[%emt 0:00:04]} 3. Nc3 {[%emt 0:00:06]} Bb4 {[%emt 0:00:13]} 4. e3 {[%emt 0:00:14]} O-O {[%emt 0:00:04]} 5. Nge2 {[%emt 0:00:57]} d5 {[%emt 0:02:13]} 6. cxd5 {[%emt 0:00:38]} exd5 {[%emt 0:00:58]} 7. a3 {[%emt 0:00:08]} Bd6 {[%emt 0:08:53]} 8. g3 {[%emt 0:00:58]} c6 {[%emt 0:03:03]} 9. Bg2 {[%emt 0:01:14]} Bf5 {[%emt 0:01:08]} 10. O-O {[%emt 0:07:05]} Nbd7 {[%emt 0:03:06]} 11. f3 {[%emt 0:02:52]} Re8 {[%emt 0:04:47]} 12. Qe1 {[%emt 0:10:50]} Bg6 {[%emt 0:14:31]} 13. Qf2 {[%emt 0:02:29]} c5 {[%emt 0:01:09]} 14. Nb5 {[%emt 0:07:12]} Bb8 {[%emt 0:05:59]} 15. Rd1 {[%emt 0:02:39]} a6 {[%emt 0:00:52]} 16. Nbc3 {[%emt 0:00:10]} cxd4 {[%emt 0:00:41]} 17. exd4 {[%emt 0:03:48]} Ba7 {[%emt 0:02:17]} 18. Nf4 {[%emt 0:03:37]} Ne5 {[%emt 0:02:02]} 19. Nxg6 {[%emt 0:01:05]} hxg6 {[%emt 0:01:20]} 20. Bf4 {[%emt 0:14:05]} Nc6 {[%emt 0:02:16]} 21. Rac1 {[%emt 0:06:56]} Na5 {[%emt 0:14:40]} 22. Rd3 {[%emt 0:11:54]} Qd7 {[%emt 0:03:02]} 23. g4 {[%emt 0:07:39]} Rac8 {[%emt 0:06:50]} 24. h4 {[%emt 0:02:31]} Rc4 {[%emt 0:01:09]} 25. Rcd1 {[%emt 0:03:27]} b5 {[%emt 0:05:31]} 26. b4 {[%emt 0:02:47]} Nc6 {[%emt 0:02:12]} 27. g5 {[%emt 0:02:36]} Nh7 {[%emt 0:06:03]} 28. Be3 {[%emt 0:02:34]} Ne7 {[%emt 0:01:57]} 29. Ne2 {[%emt 0:02:43]} Nf5 {[%emt 0:01:36]} 30. Bh3 {[%emt 0:00:28]} Qc6 {[%emt 0:01:26]} 31. Bxf5 {[%emt 0:00:08]} gxf5 {[%emt 0:00:02]} 32. Bf4 {[%emt 0:01:08]} Nf8 {[%emt 0:00:28]} 33. h5 {[%emt 0:00:25]} Rc2 {[%emt 0:01:45]} 34. R1d2 {[%emt 0:00:18]} Ne6 {[%emt 0:02:24]} 35. Be3 {[%emt 0:01:06]} Qc7 {[%emt 0:02:09]} 36. f4 {[%emt 0:00:35]} Rxd2 {[%emt 0:00:30]} 37. Rxd2 {[%emt 0:00:30]} Nd8 {[%emt 0:00:29]} 38. Rd3 {[%emt 0:00:26]} Nb7 {[%emt 0:00:13]} 39. Kg2 {[%emt 0:00:28]} Nd6 {[%emt 0:00:08]} 40. Ng3 {[%emt 0:00:08]} Qe7 {[%emt 0:01:43]} 41. Qf3 {[%emt 0:30:57]} Qe6 {[%emt 0:01:42]} 42. Bf2 {[%emt 0:00:00]} Ne4 {[%emt 0:00:48]} 43. Qd1 {[%emt 0:05:41]} Rc8 {[%emt 0:03:23]} 44. Qe1 {[%emt 0:00:00]} Rc2 {[%emt 0:01:24]} 45. Nxe4 {[%emt 0:00:00]} Qxe4+ {[%emt 0:01:16]} 46. Qxe4 {[%emt 0:00:00]} fxe4 {[%emt 0:00:22]} 0-1